bitfinex-derivatives/quotes_ETHF0:USTF0_20250107
["timestamp","ask_amount","ask_price","bid_price","bid_amount"]
[1736257617882,5.00957309,3640.7,3640.5,0.2747]
[1736257617883,0.69729,3640.7,3640.5,0.2747]
[1736257618288,0.69729,3640.7,3640.5,0.7112]
[1736257618495,0.4226,3640.7,3640.5,0.7112]
[1736257618789,0.69729,3640.7,3640.5,0.8663]
[1736257618997,0.69729,3640.7,3640.5,1.141]
[1736257618998,0.4226,3640.7,3640.5,1.141]
[1736257619192,0.69728,3640.7,3640.5,1.141]
[1736257619393,0.4226,3640.7,3640.5,1.141]
[1736257619596,2.57799277,3640.7,3640.5,1.141]
[1736257620190,2.57799277,3640.7,3640.6,0.27469]
[1736257620696,2.57799277,3640.7,3640.5,0.8663]
[1736257621096,2.57799277,3640.7,3640.5,1.14099]
[1736257621295,2.57799277,3640.7,3640.6,0.27469]
[1736257621790,2.15539277,3640.7,3640.6,0.27469]
[1736257621985,2.15539277,3640.7,3640.5,0.8663]
[1736257621986,2.60599277,3640.7,3640.5,1.14099]
[1736257622190,2.60599277,3640.7,3640.6,0.27469]
[1736257624287,2.60599277,3640.7,3640.5,0.8663]
[1736257624594,0.2747,3640.5,3640.4,40.8]
[1736257624910,3.4825,3640.5,3640.4,40.8]
[1736257626596,0.27473,3640.1,3639.9,0.27474]
[1736257626800,0.71814,3640.0,3639.9,0.27474]
[1736257627099,0.71814,3640.0,3639.9,41.07474]
[1736257627301,0.4434,3640.0,3639.9,41.07474]
[1736257627801,0.71813,3640.0,3639.9,41.07474]
[1736257628100,0.8848,3640.0,3639.9,41.07474]
[1736257629298,1.15953,3640.0,3639.9,40.8]
[1736257629901,0.8848,3640.0,3639.9,40.8]
[1736257630103,1.15953,3640.0,3639.9,40.8]
[1736257634500,2.15388578,3640.2,3639.9,40.8]
[1736257634704,2.15388578,3640.2,3640.1,0.27473]
[1736257635105,4.40409916,3640.3,3640.2,0.27472]
[1736257635106,4.12938916,3640.3,3640.2,0.27472]
[1736257635307,4.12938916,3640.3,3640.2,0.70142]
[1736257636714,0.27471,3640.4,3640.2,0.4267]
[1736257636902,0.27471,3640.4,3640.3,0.27471]
[1736257637404,3.2078,3640.5,3640.4,0.2747]
[1736257638203,3.4825,3640.5,3640.4,0.2747]
[1736257638601,3.2078,3640.5,3640.4,0.2747]
[1736257640009,2.15088019,3640.7,3640.6,0.27469]
[1736257640508,2.15088019,3640.8,3640.4,2.20771603]
[1736257640712,2.15088019,3640.8,3640.7,5.69019603]
[1736257641110,3.23308916,3641.0,3640.9,0.27467]
[1736257641313,3.23308916,3641.0,3640.9,41.07467]
[1736257642316,0.4341,3641.7,3641.5,0.27462]
[1736257643416,0.4341,3641.7,3641.1,5.41551603]
[1736257643913,0.4341,3641.7,3641.6,0.27461]
[1736257644610,0.4341,3641.7,3641.6,41.07461]
[1736257647010,0.70871,3641.7,3641.6,41.07461]
[1736257647213,0.4341,3641.7,3641.6,41.07461]
[1736257650516,0.70871,3641.7,3641.6,41.07461]
[1736257651717,0.70871,3641.7,3641.6,40.8]
[1736257656011,4.3538451,3641.7,3641.6,40.8]
[1736257658317,1.12075594,3641.7,3641.6,40.8]
[1736257659822,0.70871,3641.7,3641.6,40.8]
[1736257660714,1.12075594,3641.7,3641.6,40.8]
[1736257661916,4.34911335,3641.7,3641.6,40.8]
[1736257662921,3.93706741,3641.7,3641.6,40.8]
[1736257665023,4.34911239,3641.7,3641.6,40.8]
[1736257667719,4.07450239,3641.7,3640.2,3.642]
[1736257668022,0.2747,3640.4,3640.3,1.17640709]
[1736257668325,0.27472,3640.2,3640.1,6.88141648]
[1736257668825,0.27472,3640.2,3640.1,47.68141648]
[1736257669226,0.27472,3640.2,3640.1,41.2471]
[1736257678133,0.27471,3640.4,3640.2,0.27472]
[1736257678334,0.27471,3640.4,3640.3,0.425]
[1736257688541,0.27471,3640.4,3640.2,0.27472]
[1736257689339,3.2078,3640.5,3640.1,41.2471]
[1736257689535,0.27471,3640.3,3640.2,0.27472]
[1736257689843,0.8967,3640.4,3640.2,0.27472]
[1736257690039,1.17141,3640.4,3640.2,0.27472]
[1736257691039,0.27471,3640.3,3640.2,0.27472]
[1736257691341,0.27471,3640.3,3640.2,1.2710005]
[1736257692343,0.72351,3640.4,3640.2,1.2710005]
[1736257693345,0.4488,3640.4,3640.2,1.2710005]
[1736257693742,0.27471,3640.3,3640.2,0.9962805]
[1736257694345,0.27471,3640.3,3640.2,1.2710005]
[1736257697534,0.27471,3640.3,3640.2,0.9962805]
[1736257697849,0.27471,3640.3,3640.2,1.2710005]
[1736257698547,0.27471,3640.3,3640.2,0.9962805]
[1736257698938,0.27471,3640.3,3640.2,1.2710005]
[1736257700250,0.27471,3640.3,3640.2,0.9962805]
[1736257700446,2.5140805,3640.4,3639.3,6.43431648]
[1736257700641,0.9962805,3639.4,3639.3,7.13569648]
[1736257700951,0.9962805,3639.4,3639.3,47.93570648]
[1736257701451,1.4419805,3639.4,3639.3,47.66091648]
[1736257701658,1.7167605,3639.4,3639.3,47.23431648]
[1736257701848,1.7167605,3639.4,3639.3,40.8]
[1736257703457,0.72048,3639.4,3639.3,40.8]
[1736257705355,0.4457,3639.4,3639.3,40.8]
[1736257705551,0.27478,3639.5,3639.3,40.8]
[1736257705747,3.22835741,3639.6,3639.5,0.27477]
[1736257706253,0.27476,3639.6,3639.5,0.27477]
[1736257706454,0.27476,3639.6,3639.5,41.07477]
[1736257706649,0.27476,3639.6,3639.5,40.8]
[1736257707157,0.27476,3639.6,3639.5,41.50377]
[1736257708053,0.27476,3639.6,3639.5,41.229]
[1736257708953,0.4275,3639.7,3639.5,41.229]
[1736257709255,0.27476,3639.6,3639.5,41.229]
[1736257709647,3.65585741,3639.7,3639.5,41.50377]
[1736257709860,3.93061741,3639.7,3639.5,41.50377]
[1736257710358,0.27476,3639.6,3639.5,41.229]
[1736257710548,3.65585741,3639.7,3639.5,41.50377]
[1736257710747,0.27476,3639.6,3639.5,41.50377]
[1736257712961,3.93061741,3639.7,3639.5,41.229]
[1736257713155,3.22835741,3639.7,3639.5,43.43821674]
[1736257713358,3.22835741,3639.7,3639.6,3.2078]
[1736257713554,3.22835741,3639.7,3639.6,3.48256]
[1736257713758,3.22835741,3639.7,3639.6,44.28256]
[1736257714055,4.31078555,3639.9,3639.6,44.0078]
[1736257714260,4.31078555,3639.9,3639.8,2.48396674]
[1736257714849,4.31078555,3639.9,3639.8,43.28396674]
[1736257715055,5.38848193,3640.1,3640.0,0.27473]
[1736257715254,3.2078,3640.5,3640.0,0.27473]
[1736257715462,3.2078,3640.5,3640.4,0.2747]
[1736257715851,3.2078,3640.5,3640.0,0.27473]
[1736257716061,3.2078,3640.5,3640.4,41.0747]
[1736257717059,0.8991,3640.6,3640.4,40.8]
[1736257717262,0.8991,3640.6,3640.5,0.2747]
[1736257717863,0.8991,3640.6,3640.4,41.0747]
[1736257717864,0.41214634,3640.5,3640.4,41.0747]
[1736257719061,0.8991,3640.6,3640.5,0.2747]
[1736257720454,1.31124544,3640.6,3640.5,0.2747]
[1736257721357,0.8991,3640.6,3640.5,0.2747]
[1736257733375,0.8991,3640.6,3640.5,1.27082057]
[1736257736978,0.8991,3640.6,3640.5,4.47862057]
[1736257737277,0.4561,3640.6,3640.5,4.47862057]
[1736257737781,0.4561,3640.6,3640.5,45.27862057]
[1736257741078,1.45222057,3640.6,3640.5,44.0078]
[1736257741380,1.72691057,3640.6,3640.5,44.0078]
[1736257743173,1.72691057,3640.6,3640.5,40.8]
[1736257743378,0.73079,3640.6,3640.5,40.8]
[1736257744682,1.14295049,3640.6,3640.5,40.8]
[1736257746282,1.14295049,3640.6,3640.5,41.0747]
[1736257747782,0.73079,3640.6,3640.5,41.0747]
[1736257749887,1.14294199,3640.6,3640.5,40.8]
[1736257750478,4.35074199,3640.6,3640.5,40.8]
[1736257751081,4.07605199,3640.6,3640.1,0.27472]
[1736257751282,0.27472,3640.2,3640.1,0.27472]
[1736257751687,0.27472,3640.2,3640.1,41.07472]
[1736257753484,0.27472,3640.2,3640.1,40.8]
[1736257753787,3.2078,3640.2,3639.4,4.30169859]
[1736257753984,0.27476,3639.7,3639.6,0.27476]
[1736257754286,0.27476,3639.7,3639.6,41.07476]
[1736257760099,0.6869918,3639.7,3639.6,40.8]
[1736257765300,1.68377783,3639.7,3639.6,40.8]
[1736257765998,3.2078,3639.8,3639.6,40.8]
[1736257765999,3.48256,3639.8,3639.7,0.27476]
[1736257766194,3.48256,3639.8,3639.7,1.27154603]
[1736257767400,5.63831157,3639.8,3639.7,1.27154603]
[1736257768297,5.36355157,3639.8,3639.7,1.27154603]
[1736257768501,2.15575157,3639.8,3639.7,1.27154603]
[1736257768804,4.31078555,3640.1,3639.7,1.27154603]
[1736257769103,4.31078555,3640.1,3640.0,1.27151603]
[1736257769300,4.31078555,3640.1,3640.0,0.27473]
[1736257769500,4.31078555,3640.1,3640.0,41.07473]
[1736257770203,2.15534523,3640.3,3640.0,41.07473]
[1736257770403,0.27473,3640.1,3640.0,40.8]
[1736257770610,0.27473,3640.1,3640.0,41.07473]
[1736257770907,0.73282,3640.2,3640.0,41.07473]
[1736257771202,0.8837,3640.1,3640.0,40.8]
[1736257771500,0.8837,3640.1,3640.0,41.07473]
[1736257779001,2.15534523,3640.3,3640.0,40.8]
[1736257779207,2.15534523,3640.3,3640.2,0.27472]
[1736257780403,2.15534523,3640.4,3640.3,0.27471]
[1736257780803,2.43004523,3640.4,3640.3,0.27471]
[1736257781109,2.15534523,3640.4,3640.3,0.27471]
[1736257783203,3.50834276,3640.5,3640.3,0.27471]
[1736257783604,3.23364276,3640.5,3640.3,0.27471]
[1736257783811,0.2747,3640.4,3640.3,0.27471]
[1736257784108,3.50834276,3640.5,3640.3,0.27471]
[1736257784715,3.50834276,3640.5,3640.4,0.2747]
[1736257784906,3.50834276,3640.5,3640.3,0.27471]
[1736257785611,0.68684709,3640.5,3640.3,0.27471]
[1736257786506,0.2747,3640.4,3640.3,0.27471]
[1736257786907,3.51129517,3640.4,3640.3,0.27471]
[1736257787211,3.23659517,3640.4,3640.3,0.27471]
[1736257788314,3.64874226,3640.4,3640.3,0.27471]
[1736257789411,3.64874226,3640.4,3640.3,1.27093889]
[1736257791213,3.23659517,3640.4,3640.3,1.27093889]
[1736257793718,2.15760057,3640.4,3640.3,1.27093889]
[1736257794121,2.15760057,3640.4,3640.3,4.47873889]
[1736257798026,2.43230057,3640.5,3640.4,0.2747]
[1736257800823,2.15760057,3640.5,3640.4,0.2747]
[1736257801227,2.43230057,3640.5,3640.4,0.2747]
[1736257801726,0.2747,3640.4,3640.3,0.27471]
[1736257802424,0.27471,3640.4,3640.3,0.27471]
[1736257802622,0.27472,3640.2,3640.0,40.8]
[1736257802822,0.8494,3640.1,3640.0,42.07095889]
[1736257803720,0.8494,3640.1,3640.0,41.07473]
[1736257806218,0.4267,3640.1,3640.0,41.07473]
[1736257807820,0.4267,3640.1,3640.0,42.25534518]
[1736257808018,2.15760057,3640.3,3640.0,41.98061518]
[1736257808225,2.15760057,3640.3,3640.2,1.27094889]
[1736257808726,2.15760057,3640.3,3640.2,42.07094889]
[1736257808923,2.15760057,3640.4,3640.3,0.27471]
[1736257809527,2.15760057,3640.4,3640.3,41.07471]
[1736257811423,2.15760057,3640.4,3640.3,42.07093889]
[1736257811817,2.15760057,3640.4,3640.3,40.8]
[1736257811818,2.43230057,3640.4,3640.3,40.8]
[1736257812027,0.2747,3640.4,3640.3,40.8]
[1736257813527,0.68687025,3640.4,3640.3,40.8]
[1736257814934,9.86901392,3640.4,3640.3,40.8]
[1736257818836,9.86901392,3640.4,3640.3,41.79622889]
[1736257819133,9.86901392,3640.4,3640.3,42.07093889]
[1736257819531,9.86901392,3640.4,3640.3,41.79622889]
[1736257819823,9.59431392,3640.4,3640.1,0.99622889]
[1736257820134,0.27472,3640.2,3640.1,1.27094889]
[1736257820434,0.27472,3640.2,3640.1,42.07094889]
[1736257821332,0.27472,3640.3,3640.2,0.27472]
[1736257822127,5.66319193,3640.4,3640.3,0.27471]
[1736257822432,5.66319193,3640.4,3640.3,1.27093889]
[1736257823233,5.80064085,3640.4,3640.3,1.27093889]
[1736257824534,0.41215892,3640.4,3640.3,1.27093889]
[1736257825038,0.41215892,3640.4,3640.3,0.99622889]
[1736257825238,0.68685892,3640.4,3640.3,1.27093889]
[1736257826236,0.41215892,3640.4,3640.3,1.27093889]
[1736257830335,0.68685892,3640.4,3640.3,1.27093889]
[1736257834937,0.41215892,3640.4,3640.3,1.27093889]
[1736257836840,4.73502182,3640.4,3640.3,1.27093889]
[1736257837948,0.41215892,3640.4,3640.3,1.27093889]
[1736257838344,0.68685892,3640.4,3640.3,1.27093889]
[1736257838549,0.41215892,3640.4,3640.3,1.27093889]
[1736257839444,4.73502182,3640.4,3640.3,1.27093889]
[1736257843250,5.00972182,3640.4,3640.3,1.27093889]
[1736257843749,0.68685892,3640.4,3640.3,1.27093889]
[1736257844342,0.41215892,3640.4,3640.3,1.27093889]
[1736257844550,0.68685892,3640.4,3640.3,1.27093889]
[1736257844755,0.41215892,3640.4,3640.3,1.27093889]
[1736257845051,4.73502182,3640.4,3640.3,1.27093889]
[1736257845351,5.00972182,3640.4,3640.3,0.99622889]
[1736257845651,5.00972182,3640.4,3640.3,0.27471]
[1736257845844,4.73502182,3640.4,3640.3,0.27471]
[1736257847250,0.41215892,3640.4,3640.3,0.27471]
[1736257848353,4.73502182,3640.4,3640.3,0.27471]
[1736257849153,5.00972182,3640.4,3640.3,0.27471]
[1736257851054,4.73502182,3640.4,3640.2,5.29792748]
[1736257851252,5.00973182,3640.4,3640.3,0.27471]
[1736257852157,4.73502182,3640.4,3640.2,5.29792748]
[1736257852343,4.73502182,3640.4,3640.2,5.57264748]
[1736257852550,0.27471,3640.3,3640.2,5.57264748]
[1736257852750,0.27472,3640.2,3640.1,45.10169859]
[1736257854059,0.27472,3640.2,3639.7,4.30169859]
[1736257854060,9.20833121,3640.2,3639.7,4.30169859]
[1736257854244,4.47877889,3639.8,3639.7,3.61009859]
[1736257854446,4.47877889,3639.8,3639.7,44.41009859]
[1736257855956,8.6871101,3639.8,3639.7,40.8]
[1736257856555,8.6871101,3639.8,3639.7,41.07476]
[1736257856756,8.6871101,3639.8,3639.7,40.8]
[1736257859156,14.08370806,3639.8,3639.7,40.8]
[1736257861365,0.2748,3639.2,3639.1,0.27479]
[1736257861971,0.2748,3639.2,3638.8,3.89486]
[1736257861972,0.99622889,3639.3,3638.8,3.2078]
[1736257862157,1.72463889,3639.1,3639.0,0.2748]
[1736257862360,0.27482,3639.0,3638.9,0.27481]
[1736257862558,0.70452,3639.0,3638.9,0.27481]
[1736257862755,0.27482,3638.9,3638.8,4.20402889]
[1736257863061,0.70451,3639.0,3638.9,0.27482]
[1736257863271,0.70451,3639.0,3638.9,41.07482]
[1736257864560,0.70451,3639.0,3638.9,40.8]
[1736257868658,0.70451,3639.0,3638.9,41.07482]
[1736257869761,0.70451,3639.0,3638.9,40.8]
[1736257872368,0.70451,3639.0,3638.9,41.07482]
[1736257872568,0.70451,3639.0,3638.9,40.8]
[1736257872862,0.70451,3639.0,3638.9,41.07482]
[1736257874269,5.36546228,3639.4,3638.9,40.8]
[1736257874467,2.43244228,3639.4,3639.3,1.27101889]
[1736257874771,2.15766228,3639.4,3639.3,1.27101889]
[1736257875266,1.14368,3639.5,3639.4,0.27478]
[1736257875666,0.8689,3639.5,3639.4,0.27478]
[1736257876264,1.14367,3639.5,3639.4,0.27478]
[1736257878273,0.8689,3639.5,3639.4,0.27478]
[1736257884179,2.15766228,3639.8,3639.3,0.99622889]
[1736257884377,2.15766228,3639.8,3639.7,1.27098889]
[1736257884572,2.15766228,3639.8,3639.7,0.27476]
[1736257884777,2.15766228,3639.8,3639.7,41.07476]
[1736257885682,1.43702889,3639.9,3639.8,0.27475]
[1736257892188,0.4408,3639.9,3639.8,0.27475]
[1736257892590,3.59469117,3639.9,3639.8,0.27475]
[1736257892881,0.27475,3639.8,3639.7,40.8]
[1736257893086,3.2078,3639.8,3639.1,4.20402889]
[1736257893282,3.2078,3639.8,3639.3,0.27478]
[1736257893283,1.27100889,3639.4,3639.3,0.27478]
[1736257893484,0.99622889,3639.4,3638.9,6.43431648]
[1736257893787,1.3014,3639.3,3639.2,0.27479]
[1736257894090,2.29762889,3639.3,3639.0,41.79622889]
[1736257894287,2.29762889,3639.3,3639.2,0.27479]
[1736257894490,1.3014,3639.3,3639.2,0.27479]
[1736257894787,1.3014,3639.3,3639.2,1.27101889]
[1736257896887,1.57619,3639.3,3639.2,0.27479]
[1736257897094,5.80891232,3639.3,3639.2,0.27479]
[1736257898294,6.2211866,3639.3,3639.2,0.27479]
[1736257898584,5.9463966,3639.3,3639.2,0.27479]
[1736257899385,6.2211866,3639.3,3639.2,0.27479]
[1736257899582,2.98469317,3639.3,3639.2,0.27479]
[1736257900996,2.29762889,3639.3,3639.0,40.8]
[1736257901194,0.99622889,3639.1,3639.0,40.8]
[1736257901396,0.99622889,3639.1,3639.0,41.07481]
[1736257903000,1.27102889,3639.1,3639.0,41.07481]
[1736257904194,0.99622889,3639.1,3639.0,41.07481]
[1736257904397,1.27102889,3639.1,3639.0,41.07481]
[1736257904597,4.92267335,3639.1,3639.0,41.07481]
[1736257904999,4.92267335,3639.1,3639.0,40.8]
[1736257905496,4.92267335,3639.1,3639.0,41.07481]
[1736257906201,1.6833126,3639.1,3639.0,40.8]
[1736257906900,0.27485,3638.5,3638.4,6.43431648]
[1736257907197,1.27107889,3638.5,3638.4,6.43431648]
[1736257907395,1.27107889,3638.5,3638.4,47.23431648]
[1736257907693,1.27107889,3638.5,3638.4,40.8]
[1736257907906,0.99622889,3638.5,3638.4,41.07485]
[1736257908293,1.71667889,3638.5,3638.4,41.07485]
[1736257909392,2.1289626,3638.5,3638.4,41.07485]
[1736257909995,2.1289626,3638.5,3638.4,40.8]
[1736257910399,5.3662613,3638.5,3638.4,40.8]
[1736257913500,4.95397759,3638.5,3638.4,40.8]
[1736257916605,3.8725539,3638.5,3638.4,40.8]
[1736257917695,3.8725539,3638.5,3638.4,41.07485]
[1736257917902,2.60147501,3638.5,3638.4,41.07485]
[1736257918605,2.15587501,3638.5,3638.4,41.07485]
[1736257918910,3.02877501,3638.7,3638.4,40.8]
[1736257919110,3.02877501,3638.7,3638.6,0.27484]
[1736257919408,4.0250039,3638.7,3638.6,0.27484]
[1736257919920,1.86912889,3638.7,3638.6,0.27484]
[1736257923625,2.14395889,3638.7,3638.6,0.27484]
[1736257923822,0.27485,3638.6,3638.5,0.27484]
[1736257924126,1.72757889,3638.6,3638.5,0.27484]
[1736257925124,3.8834539,3638.6,3638.5,0.27484]
[1736257926528,1.72757889,3638.6,3638.5,0.27484]
[1736257927720,2.57437501,3638.7,3638.6,0.27484]
[1736257927921,2.84920501,3638.7,3638.6,0.27484]
[1736257928527,3.8454339,3638.7,3638.6,0.27484]
[1736257929327,1.68955889,3638.7,3638.6,0.27484]
[1736257929823,1.41472889,3638.7,3638.4,40.8]
[1736257930021,1.27107889,3638.5,3638.4,40.8]
[1736257930324,0.27487,3638.2,3638.0,0.27488]
[1736257930628,0.27487,3638.2,3638.1,44.0078]
[1736257931127,1.18617,3638.2,3638.1,44.0078]
[1736257931922,4.39397,3638.2,3638.1,40.8]
[1736257934027,8.04370414,3638.2,3638.1,40.8]
[1736257936434,4.80640544,3638.2,3638.1,40.8]
[1736257940137,9.12474635,3638.2,3638.1,40.8]
[1736257942233,0.27492,3637.6,3637.5,3.48272]
[1736257942537,8.84987635,3638.2,3637.2,0.27493]
[1736257942538,0.27495,3637.3,3637.2,0.27493]
[1736257942742,0.27495,3637.3,3637.2,41.07493]
[1736257942944,0.27495,3637.3,3637.2,40.8]
[1736257947247,0.27495,3637.3,3637.2,41.07495]
[1736257948442,0.27495,3637.3,3637.2,40.8]
[1736257949446,0.27495,3637.3,3637.2,41.07495]
[1736257949749,2.58910188,3637.5,3637.2,40.8]
[1736257949937,2.86403188,3637.5,3637.4,0.27493]
[1736257950339,2.58910188,3637.5,3637.4,0.27493]
[1736257950544,2.86402188,3637.5,3637.4,0.27493]
[1736257951748,2.58910188,3637.5,3637.4,0.27493]
[1736257952658,2.86402188,3637.5,3637.4,0.27493]
[1736257952851,2.58910188,3637.5,3637.2,40.8]
[1736257953050,0.4325,3637.5,3637.2,40.8]
[1736257953357,0.27494,3637.3,3637.2,40.8]
[1736257954955,0.27494,3637.3,3637.2,41.07495]
[1736257955150,0.27494,3637.3,3637.2,40.8]
[1736257958248,2.43154188,3637.3,3637.2,40.8]
[1736257961263,3.42965339,3637.3,3637.2,40.8]
[1736257963862,3.42965339,3637.3,3637.2,41.07495]
[1736257965056,2.43154188,3637.3,3637.2,41.07495]
[1736257969166,2.15660188,3637.3,3637.2,41.07495]
[1736257970557,3.23490283,3637.5,3637.4,0.27493]
[1736257970558,2.15660188,3637.5,3637.4,0.27493]
[1736257971859,3.69330283,3637.6,3637.3,0.4333]
[1736257972055,0.4584,3637.6,3637.5,0.27492]
[1736257972458,2.15660188,3637.8,3637.7,0.27491]
[1736257973162,2.15660188,3637.8,3637.7,41.07491]
[1736257973966,2.15660188,3637.8,3637.7,40.8]
[1736257974164,2.15660188,3637.8,3637.3,1.12064]
[1736257974165,2.15660188,3637.8,3637.2,3.2078]
[1736257974469,5.22177316,3637.9,3637.2,9.64211648]
[1736257974667,0.27493,3637.5,3637.4,0.27493]
[1736257974869,5.22177316,3637.9,3637.3,41.07493]
[1736257975069,0.4523,3637.4,3637.3,41.07493]
[1736257975768,0.876,3637.4,3637.3,41.07493]
[1736257975964,3.03260188,3637.4,3637.3,41.07493]
[1736257976159,3.30753188,3637.4,3637.3,41.07493]
[1736257976364,3.03260188,3637.4,3637.3,41.07493]
[1736257976764,3.30753188,3637.4,3637.3,40.8]
[1736257976974,1.15093,3637.4,3637.3,41.07494]
[1736257977168,1.15093,3637.4,3637.3,40.8]
[1736257977468,0.876,3637.4,3637.3,41.07494]
[1736257978271,4.11090283,3637.4,3637.3,41.07494]
[1736257978972,4.54560283,3637.4,3637.3,41.07494]
[1736257979171,4.09330283,3637.4,3637.3,41.07494]
[1736257979372,4.08208523,3637.4,3637.3,41.07494]
[1736257979569,3.64738523,3637.4,3637.3,41.07494]
[1736257980470,2.16094469,3637.5,3637.3,40.8]
[1736257980668,2.16094469,3637.5,3637.4,0.71133]
[1736257983971,2.57914469,3637.5,3637.4,0.71133]
[1736257984878,2.57914469,3637.5,3637.4,0.27493]
[1736257985272,2.57914469,3637.5,3637.3,45.11327664]
[1736257985474,2.85407469,3637.5,3637.3,45.11327664]
[1736257985668,2.57914469,3637.5,3637.4,0.27493]
[1736257986981,0.83067488,3637.5,3637.4,0.27493]
[1736257988281,3.65995444,3637.5,3637.4,0.27493]
[1736257989178,4.07242932,3637.5,3637.4,0.27493]
[1736257990580,0.83067488,3637.5,3637.4,0.27493]
[1736257991675,0.4182,3637.5,3637.4,0.27493]
[1736257991875,0.69312,3637.5,3637.4,0.27493]
[1736257992379,0.4182,3637.5,3637.4,0.27493]
[1736257992874,0.83067488,3637.5,3637.4,0.27493]
[1736257993383,1.10559488,3637.5,3637.4,0.27493]
[1736257993577,0.83067488,3637.5,3637.4,0.27493]
[1736257993883,1.10559488,3637.5,3637.4,0.27493]
[1736257994382,1.10559488,3637.5,3637.3,40.8]
[1736257994584,1.10559488,3637.5,3637.4,0.27493]
[1736257995378,1.69101039,3637.5,3637.4,0.27493]
[1736257996782,1.69101039,3637.5,3637.3,40.8]
[1736257996783,1.69102039,3637.5,3637.3,40.8]
[1736257996989,1.69102039,3637.5,3637.4,0.27493]
[1736257998185,2.10348386,3637.5,3637.4,0.27493]
[1736257998687,1.82855386,3637.5,3637.4,0.27493]
[1736257999682,5.0704978,3637.5,3637.4,0.27493]
[1736258000780,4.65803433,3637.5,3637.4,0.27493]
[1736258001186,3.66014394,3637.5,3637.4,0.27493]
[1736258001390,3.66014394,3637.5,3637.4,1.27282039]
[1736258002191,2.57937191,3637.5,3637.4,1.27282039]
[1736258002892,2.16117191,3637.5,3637.4,1.27282039]
[1736258004188,2.16117191,3637.5,3637.4,2.45414076]
[1736258004490,2.16117191,3637.5,3637.4,1.27282039]
[1736258004697,2.16117191,3637.7,3637.6,0.27492]
[1736258004997,2.16117191,3637.7,3637.6,1.27281039]
[1736258008590,0.99789039,3637.7,3637.4,4.31327664]
[1736258008790,1.27280039,3637.7,3637.5,0.27492]
[1736258008990,1.27280039,3637.7,3637.6,0.27492]
[1736258010797,0.99789039,3637.7,3637.6,0.27492]
[1736258011098,1.27280039,3637.7,3637.6,0.27492]
[1736258011598,1.68525407,3637.7,3637.6,0.27492]
[1736258011800,0.27492,3637.6,3637.5,0.27492]
[1736258011997,1.27281039,3637.6,3637.4,0.27493]
[1736258012899,1.27281039,3637.6,3637.5,0.27492]
[1736258014189,1.68526665,3637.6,3637.5,0.27492]
[1736258015694,1.41034665,3637.6,3637.3,45.11327664]
[1736258016094,1.41034665,3637.6,3637.3,45.38821664]
[1736258016299,1.27282039,3637.4,3637.3,45.11327664]
[1736258016997,4.51702823,3637.4,3637.3,45.11327664]
[1736258017391,5.37442823,3637.4,3637.3,45.38821664]
[1736258017596,5.37442823,3637.4,3637.3,45.11327664]
[1736258017790,5.37442823,3637.4,3637.3,45.38821664]
[1736258017995,5.78688449,3637.4,3637.3,45.11327664]
[1736258018196,5.78688449,3637.4,3637.3,45.38821664]
[1736258018800,5.78688449,3637.4,3637.3,45.11327664]
[1736258018997,5.78688449,3637.4,3637.3,4.31327664]
[1736258019197,5.78688449,3637.4,3637.3,2.92967664]
[1736258020598,6.11790214,3637.4,3636.8,0.27497]
[1736258020796,1.27286039,3636.9,3636.8,0.27497]
[1736258021003,0.99789039,3636.9,3636.8,0.27497]
[1736258022003,1.68531665,3636.9,3636.8,0.27497]
[1736258022402,1.41034665,3636.9,3636.7,0.99789039]
[1736258022604,0.4236,3636.8,3636.7,1.27287039]
[1736258024205,0.4236,3636.8,3636.7,0.27498]
[1736258024597,2.58520365,3636.8,3636.7,0.27498]
[1736258025107,2.86018365,3636.8,3636.7,0.27498]
[1736258025309,2.58520365,3636.8,3636.5,0.4236]
[1736258025506,0.99789039,3636.7,3636.6,0.27499]
[1736258026305,0.99789039,3636.7,3636.4,7.8168633]
[1736258026509,0.99789039,3636.7,3636.6,0.27499]
[1736258027009,1.27288039,3636.7,3636.5,1.27289039]
[1736258027211,3.43448404,3636.7,3636.5,1.27289039]
[1736258028198,3.43448404,3636.7,3636.5,0.99789039]
[1736258028407,3.43448404,3636.7,3636.5,1.27289039]
[1736258029610,3.43448404,3636.7,3636.5,1.27288039]
[1736258031004,0.27499,3636.6,3636.5,0.99789039]
[1736258031206,3.43448404,3636.7,3636.5,1.27289039]
[1736258031610,3.15949404,3636.7,3636.5,0.99789039]
[1736258031806,3.15949404,3636.7,3636.1,6.43431648]
[1736258032005,1.27289039,3636.5,3636.3,0.27501]
[1736258032305,1.27289039,3636.5,3636.4,40.8]
[1736258033111,3.43449404,3636.5,3636.4,40.8]
[1736258033609,3.43449404,3636.5,3636.4,41.07501]
[1736258034205,1.27289039,3636.5,3636.4,41.07501]
[1736258034807,1.27289039,3636.5,3636.4,40.8]
[1736258036108,0.99789039,3636.5,3636.4,40.8]
[1736258036309,1.27289039,3636.5,3636.4,40.8]
[1736258036509,3.43111334,3636.5,3636.4,40.8]
[1736258036710,2.43322295,3636.5,3636.4,40.8]
[1736258036913,2.88242295,3636.5,3636.4,40.8]
[1736258037612,2.88242295,3636.5,3636.4,41.07501]
[1736258038007,3.9669765,3636.5,3636.4,41.07501]
[1736258039714,0.7242,3636.5,3636.4,41.07501]
[1736258041615,2.88093496,3636.5,3636.4,41.07501]
[1736258045516,2.88093496,3636.5,3636.4,40.8]
[1736258045714,2.88093496,3636.5,3636.4,41.07501]
[1736258046722,2.88093496,3636.5,3636.4,40.8]
[1736258048117,0.7242,3636.5,3636.4,40.8]
[1736258048318,0.27502,3636.2,3636.1,0.27503]
[1736258048517,1.27291039,3636.2,3636.1,0.27503]
[1736258048717,1.27291039,3636.2,3636.1,41.07503]
[1736258049024,1.27291039,3636.2,3636.1,40.8]
[1736258049223,1.27291039,3636.2,3636.1,41.07503]
[1736258049523,1.27291039,3636.2,3636.1,40.8]
[1736258052318,4.48071039,3636.2,3636.1,40.8]
[1736258053528,4.89337241,3636.2,3636.1,40.8]
[1736258054219,4.61835241,3636.2,3635.4,2.80754219]